Cogmind - Beta 9.5 --- EXPLORER MODE // 2020.04.13 @ 23:58:32 // Winter2019/RPGLIKE Player: hemo Result: Destroyed by P-70 Sage with Tesla Rifle Performance ------------- Evolutions (6) 3000 Regions Visited (15) 3000 Robots Destroyed (223) 1115 Value Destroyed (9851) 9851 Prototype IDs (107) 2140 Alien Tech Used (0) 0 Bonus (4631) 4631 TOTAL SCORE: 23737 Bonus ------- High Alert Combat Kills 289 Follower Combat Kills 2921 Entered Garrisons 800 Used RIF Installer 2000 Aligned with FarCom 300 Friendly Fire -1679 Cogmind --------- Core Integrity 0/700 Matter 300/300 Energy 345/350 System Corruption 5% Temperature Cool (0) Movement Walking (150) Ox1 Location -4/Factory Parts ------- > --- POWER (1) -------- Enhanced Fission Core > --- PROPULSION (2) --- Improved Carbon-fiber Leg Flexi-carbon Leg > --- UTILITY (13) ----- Experimental Terrain Scanner Experimental Terrain Scan Processor Layered Medium Armor Plating Improved Hacking Suite Improved Hacking Suite Improved Hacking Suite Relay Coupler [NC] (95) Relay Coupler [Swarmer] (77) Relay Coupler [Grunt] (75) Relay Coupler [Brawler] (112) Relay Coupler [Sentry] (8) Relay Coupler [Demolisher] (53) Relay Coupler [Hunter] (41) > --- WEAPON (5) ------- Improved Arc Projector Improved Arc Projector Advanced Datajack Improved Remote Datajack Heavy Pick > --- INVENTORY (3) ---- Relay Coupler [Hunter] (68) Improved System Backup Module KE Penetrator Peak State ------------ > --- POWER ------------ Enhanced Fission Core > --- PROPULSION ------- Improved Carbon-fiber Leg Flexi-carbon Leg > --- UTILITY ---------- Experimental Terrain Scanner Experimental Terrain Scan Processor Experimental Targeting Computer Improved Hacking Suite Improved Hacking Suite Improved Hacking Suite Relay Coupler [NC] Relay Coupler [Swarmer] Relay Coupler [Grunt] Relay Coupler [Brawler] Relay Coupler [Sentry] Relay Coupler [Hunter] Improved System Backup Module > --- WEAPON ----------- Improved Arc Projector Improved Arc Projector KE Penetrator Improved Remote Datajack Heavy Pick > --- INVENTORY -------- Layered Medium Armor Plating Autogun Advanced Datajack [Rating: 103] Favorites ----------- Power Light Nuclear Core Engine Light Angular Momentum Engine Power Core Light Nuclear Core Propulsion Carbon-fiber Leg Treads Light Treads Leg Carbon-fiber Leg Utility Hacking Suite Device Experimental Sensor Array Storage Energy Well Processor Advanced Signal Interpreter Hackware Hacking Suite Protection Layered Medium Armor Plating Weapon Heavy Pick Energy Gun Heavy EM Pulse Gun Energy Cannon Cooled Particle Cannon Ballistic Gun KE Penetrator Launcher Guided EMP Blaster Special Weapon Improved Remote Datajack Impact Weapon Powered Hammer Slashing Weapon Axe Piercing Weapon Heavy Pick Special Melee Weapon Improved Datajack Build | -11 -10 -10 -10 -9 -8 -8 -8 -8 -6 -6 -5 -5 -5 -5 -4 ------- Run | Scr Mat Min Exi Min Mat Sto Gar Rec Fac Gar Fac Gar Fac Gar Fac Slots Evolved 17 | 4 . . . . 7 1 1 1 1 1 1 . . . . Power . | . . . . . . . . . . . . . . . . Propulsion 1 | . . . . . 1 . . . . . . . . . . Utility 12 | 3 . . . . 4 1 . 1 1 1 1 . . . . Weapon 4 | 1 . . . . 2 . 1 . . . . . . . . Parts Attached 169 | 9 9 3 4 . 29 2 7 3 41 9 20 4 20 6 3 Power 12 | 1 . . . . 1 . . . 5 . 2 . 3 . . Engine 7 | 1 . . . . . . . . 5 . 1 . . . . Core 5 | . . . . . 1 . . . . . 1 . 3 . . Reactor . | . . . . . . . . . . . . . . . . Propulsion 14 | 1 1 1 . . 1 . . 1 5 . 2 . 2 . . Treads 1 | 1 . . . . . . . . . . . . . . . Leg 13 | . 1 1 . . 1 . . 1 5 . 2 . 2 . . Wheel . | . . . . . . . . . . . . . . . . Hover . | . . . . . . . . . . . . . . . . Flight . | . . . . . . . . . . . . . . . . Utility 72 | 4 5 2 3 . 10 1 2 2 13 8 7 2 5 5 3 Device 30 | 1 4 2 1 . 4 . 1 . 8 3 2 . 2 1 1 Storage 1 | . . . . . . . . . 1 . . . . . . Processor 13 | 2 1 . 2 . 5 . . . 3 . . . . . . Hackware 22 | . . . . . 1 1 1 2 1 5 4 2 2 3 . Protection 6 | 1 . . . . . . . . . . 1 . 1 1 2 Artifact . | . . . . . . . . . . . . . . . . Weapon 71 | 3 3 . 1 . 17 1 5 . 18 1 9 2 10 1 . Energy Gun 24 | 1 1 . 1 . 6 . 2 . 8 . . . 5 . . Energy Cannon 5 | . . . . . . . . . 4 . 1 . . . . Ballistic Gun 6 | 2 . . . . . . . . 1 . . . 3 . . Ballistic Cannon . | . . . . . . . . . . . . . . . . Launcher 5 | . . . . . 2 . 1 . 2 . . . . . . Special Weapon 10 | . . . . . . . . . 1 1 5 2 1 . . Impact Weapon 3 | . 1 . . . . . 1 . . . 1 . . . . Slashing Weapon 7 | . . . . . 6 1 . . . . . . . . . Piercing Weapon 3 | . . . . . . . . . 1 . 1 . 1 . . Special Melee Weapon 8 | . 1 . . . 3 . 1 . 1 . 1 . . 1 . Unidentified Prototypes 8 | . . 1 . . . . . . 5 . . . 2 . . Parts Lost 2 | . . . . . . . . . 1 . 1 . . . . Power 1 | . . . . . . . . . . . 1 . . . . Propulsion . | . . . . . . . . . . . . . . . . Utility . | . . . . . . . . . . . . . . . . Weapon 1 | . . . . . . . . . 1 . . . . . . Highest Loss Streak 1 | . . . . . . . . . 1 . 1 . . . . Average Slot Usage (%) 95 | . 99 100 93 87 90 93 96 99 96 92 94 95 99 100 100 Engine 3 | . 12 12 12 12 2 . . . 4 5 3 . . . . Core 2 | . . . . . 4 6 5 5 . . . 4 4 4 4 Leg 10 | . 2 12 12 12 14 12 11 10 10 8 9 9 8 9 9 Device 18 | . 26 37 31 25 27 25 27 18 16 7 5 4 8 9 4 Processor 13 | . 17 12 18 25 20 18 11 11 12 15 13 9 9 5 4 Hackware 22 | . . . . . 4 10 11 22 26 36 40 42 42 45 47 Energy Gun 8 | . 9 12 11 12 11 12 10 11 9 . . . 7 9 9 Energy Cannon 1 | . . . . . . . . . . 5 4 4 . . . Launcher 1 | . . . . . . . 3 5 2 5 4 4 . . . Special Weapon 2 | . . . . . . . . . 3 2 4 4 5 4 4 Impact Weapon 1 | . 4 12 6 . . . 2 5 . . . . . . . Piercing Weapon 2 | . . . . . . . . . 4 5 4 4 4 4 4 Special Melee Weapon 1 | . 6 . . . . . 4 5 2 2 . . . 1 4 Naked Turns . | . . . . . . . . . . . . . . . . Heaviest Build 45 | 12 13 13 15 15 28 28 28 27 35 33 40 40 45 39 41 Greatest Support 40 | 20 20 15 15 15 30 30 30 32 40 34 38 38 38 38 38 Greatest Overweight (x) 1 | 1 1 1 . . 1 . . . . 1 1 1 1 1 1 Average Overweight (x) . | . . . . . . . . . . . . 1 . . . Largest Inventory Capacity 3 | 1 1 1 2 2 2 2 2 2 2 3 3 3 3 3 3 Average Capacity 2 | . 1 1 1 2 2 2 2 2 2 2 3 3 3 3 3 Most Carried 3 | 1 1 1 2 2 2 2 2 2 2 3 3 3 3 3 3 Average Carried 2 | . . 1 1 2 1 1 1 1 1 2 2 2 2 2 3 Final Capacity 3 | 1 1 1 2 2 2 2 2 2 2 3 3 3 3 3 3 Final Carried 3 | 1 1 1 2 2 2 2 1 1 2 3 3 3 3 3 3 Class Distribution -------------------- 40% | Wizard-Assassin 30% | Wizard-Mutant 9% | Hacker-Assassin 6% | Hacker-Skirmisher 4% | Wizard-Skirmisher 3% | Hacker-Mutant Dominant Class ---------------- Hacker-Assassin | -10/Materials Hacker-Assassin | -10/Mines Hacker-Assassin | -10/Exiles Hacker-Skirmisher | -9/Mines Wizard-Skirmisher | -8/Materials Wizard-Assassin | -8/Storage Wizard-Assassin | -8/Garrison Wizard-Assassin | -8/Recycling Wizard-Assassin | -6/Factory Wizard-Mutant | -6/Garrison Wizard-Mutant | -5/Factory Wizard-Mutant | -5/Garrison Wizard-Mutant | -5/Factory Wizard-Mutant | -5/Garrison Wizard-Mutant | -4/Factory Resources | -11 -10 -10 -10 -9 -8 -8 -8 -8 -6 -6 -5 -5 -5 -5 -4 ----------- Run | Scr Mat Min Exi Min Mat Sto Gar Rec Fac Gar Fac Gar Fac Gar Fac Matter Collected 2845 | 284 69 70 . 40 280 35 60 25 712 164 396 109 224 333 44 Remotely . | . . . . . . . . . . . . . . . . Salvage Created 8220 | 143 330 218 . 125 1159 885 168 383 2420 266 1158 348 448 98 71 Parts 486 | 5 19 8 . 5 87 60 25 18 118 23 65 21 22 3 7 Haulers Intercepted 16 | . 2 . . . 6 3 . . 4 . 1 . . . . Recyclers Shooed 8 | . 2 . . . 1 . . . 4 . 1 . . . . Parts Field Recycled . | . . . . . . . . . . . . . . . . Retrieved Matter . | . . . . . . . . . . . . . . . . Parts Self-Destructed . | . . . . . . . . . . . . . . . . Prevented . | . . . . . . . . . . . . . . . . Kills | -11 -10 -10 -10 -9 -8 -8 -8 -8 -6 -6 -5 -5 -5 -5 -4 ------- Run | Scr Mat Min Exi Min Mat Sto Gar Rec Fac Gar Fac Gar Fac Gar Fac Combat Hostiles Destroyed 156 | . 8 7 . 2 20 15 12 6 36 9 22 8 8 1 2 Melee 37 | . 2 . . . . . 3 . 19 2 6 2 1 . 2 Guns 80 | . 6 6 . 2 20 15 9 5 11 . . . 6 . . Cannons 28 | . . . . . . . . . 3 6 14 5 . . . AOE 7 | . . . . . . . . 1 3 1 . 1 1 . . Classes Destroyed 17 | 3 4 . . . 4 4 . 1 1 . . . . . . Worker 9 | 2 . . . . . 1 . . 2 . 4 . . . . Builder 9 | . . . . . . 1 . 1 2 . 4 . 1 . . Tunneler 4 | 3 . . . . . . . 1 . . . . . . . Hauler 16 | . 2 . . . 6 3 . . 4 . 1 . . . . Recycler 9 | 1 . . . . . 1 . 2 3 . 2 . . . . Carrier 1 | . . . . . . 1 . . . . . . . . . Operator 2 | . . . . . 1 . . . . . . . 1 . . Drone 6 | . . . . . . . . 6 . . . . . . . Watcher 9 | . 3 . . . 3 1 . . . . 2 . . . . Swarmer 38 | . 4 4 . . 5 . 6 . 3 5 6 2 3 . . Grunt 57 | . 4 3 . 2 6 5 6 2 12 3 7 4 3 . . Brawler 3 | . . . . . . 1 . . 1 . 1 . . . . Duelist 6 | . . . . . 1 . 1 . 1 . 1 2 . . . Sentry 24 | . . . . . 9 8 1 . 4 1 1 . . . . Hunter 7 | . . . . . . 1 . . 3 . 1 1 . 1 . Programmer 22 | . . . . . . . . . 12 . 6 . 2 . 2 Zionite 1 | . . . . . 1 . . . . . . . . . . Best Kill Streak 11 | 3 2 2 . 1 7 9 5 4 5 4 11 2 2 1 1 Combat Bots Only 7 | . 2 2 . 1 4 7 5 4 3 4 4 2 2 1 1 Max Kills in Single Turn 6 | 1 1 1 . 1 2 1 2 6 5 1 5 1 1 1 1 Gunslinging 1 | . . . . . . . 1 . . . . . . . . Exploded 1 | . . . . . . . . 1 1 1 . 1 1 . . Melee 1 | . 1 . . . . . 1 . 1 1 1 1 1 . 1 Uniques/NPCs Destroyed . | . . . . . . . . . . . . . . . . Combat | -11 -10 -10 -10 -9 -8 -8 -8 -8 -6 -6 -5 -5 -5 -5 -4 -------- Run | Scr Mat Min Exi Min Mat Sto Gar Rec Fac Gar Fac Gar Fac Gar Fac Damage Taken 7512 | . 355 258 . 18 235 207 274 100 2052 425 1195 260 456 521 1156 Core 5781 | . 268 206 . 15 182 160 224 80 1622 333 943 186 369 408 785 Absorbed by Shields 4 | . . . . . . . . . . 4 . . . . . Redirected to Core 4680 | . 191 159 . 8 159 145 160 58 1361 225 754 164 279 366 651 Core Remaining (%) 99 | 100 . . . 97 . . . 100 . 100 . . . 100 . Volleys Fired 420 | 21 41 27 . . 37 8 11 7 86 22 72 27 26 27 8 Largest 3 | 1 2 1 . . 1 2 3 3 3 1 1 1 3 3 2 Hottest 179 | 50 70 50 . . 63 81 146 146 179 90 90 90 163 163 130 Shots Fired 692 | 21 60 27 . 9 108 51 41 14 125 24 72 27 50 49 14 Gun 505 | 21 60 27 . 9 108 50 40 13 86 . . . 38 41 12 Cannon 89 | . . . . . . . . . 13 12 50 14 . . . Launcher 18 | . . . . . . 1 1 1 5 3 3 4 . . . Special 80 | . . . . . . . . . 21 9 19 9 12 8 2 Kinetic 55 | 7 19 . . . . . . . . . . . 13 16 . Thermal 371 | 14 41 27 . 9 89 42 29 6 33 12 50 14 5 . . Explosive . | . . . . . . . . . . . . . . . . Electromagnetic 186 | . . . . . 19 9 12 8 71 3 3 4 20 25 12 Robot Hit Streak 50 | 15 21 20 . 22 38 26 14 5 24 16 35 50 27 20 17 Robot Miss Streak 2 | 1 2 1 . 1 2 1 1 1 2 1 1 1 1 1 . Penetration Max 1 | . . . . . . . . . . . . . . 1 . Secondary Targets 4 | . 1 . . . . . 1 . 2 . . . . . . Max Gunslinging Chain 1 | . 1 . . . . . 1 . 1 . . . . . . Autonomous 150 | . . . . 9 71 42 28 . . . . . . . . Shots Hit Robots 845 | 20 65 28 . 8 111 59 45 37 202 34 88 30 54 34 30 Core Hits 326 | 8 19 9 . 3 38 29 18 13 88 13 41 13 18 8 8 Critical Hits 7 | . . . . . . . . . 2 . 2 . 2 . 1 Critical Kills 3 | . . . . . . . . . . . 2 . 1 . . Critical Parts Destroyed 4 | . . . . . . . . . 2 . . . 1 . 1 Melee Attacks 347 | . 15 3 . . 19 25 18 32 105 39 29 16 20 9 17 Impact 32 | . 12 3 . . . . 12 5 . . . . . . . Slashing 47 | . . . . . 16 25 6 . . . . . . . . Piercing 190 | . . . . . . . . . 67 36 29 16 20 6 16 Sneak Attacks 75 | . . . . . 6 7 . 23 29 . 6 1 2 1 . Combat Hostiles 17 | . . . . . . . . 1 15 . . . . 1 . Follow-up Attacks . | . . . . . . . . . . . . . . . . Damage Inflicted 23842 | 234 890 389 . 250 3156 2542 1483 898 5278 1011 4457 986 1127 468 673 Guns 8969 | 220 579 325 . 250 2697 1389 1063 151 1208 . . . 464 468 155 Cannons 3251 | . . . . . . . . . 339 446 1969 497 . . . Explosions 3987 | . . . . . . 212 53 551 1373 129 1304 288 77 . . Melee 7620 | . 310 64 . . 459 941 367 196 2358 436 1184 201 586 . 518 Ramming 15 | 14 1 . . . . . . . . . . . . . . Kinetic 515 | 59 114 . . . . . . . . . . . 139 203 . Thermal 11271 | 161 465 325 . 250 2390 1286 922 302 1556 446 2444 519 205 . . Explosive 1404 | . . . . . . 190 53 96 353 . 712 . . . . Electromagnetic 3017 | . . . . . 307 125 141 304 1011 129 117 266 197 265 155 Impact 855 | . 310 64 . . . . 285 196 . . . . . . . Slashing 1482 | . . . . . 459 941 82 . . . . . . . . Piercing 5283 | . . . . . . . . . 2358 436 1184 201 586 . 518 Highest Corruption 7 | . . . . . . . . . 7 7 1 1 1 1 5 Average Corruption 3 | . . . . . . . . . 4 7 1 1 1 1 2 Corruption Purged 4 | . . . . . . . . . . . . . 3 1 . Effects 111 | . . . . . . . . . 77 24 1 2 1 2 4 Message Errors 29 | . . . . . . . . . 23 3 1 . 1 1 . Matter Fused 27 | . . . . . . . . . 18 9 . . . . . Heat Flow Errors 9 | . . . . . . . . . 8 1 . . . . . Energy Discharges 14 | . . . . . . . . . 11 1 . . . . 2 Parts Rejected 3 | . . . . . . . . . 2 1 . . . . . Data Loss (minor) 8 | . . . . . . . . . 6 1 . 1 . . . Data Loss (major) 5 | . . . . . . . . . 3 2 . . . . . Misfires 4 | . . . . . . . . . 2 2 . . . . . Targeting Errors 11 | . . . . . . . . . 4 4 . 1 . . 2 Weapon Failures 1 | . . . . . . . . . . . . . . 1 . Overload Shots 24 | . . . . . . . . . 9 5 10 . . . . Effects 4 | . . . . . . . . . 3 . 1 . . . . Heat Surge 1 | . . . . . . . . . 1 . . . . . . Short Circuit 1 | . . . . . . . . . . . 1 . . . . Meltdown 2 | . . . . . . . . . 2 . . . . . . Overflow Damage 1247 | . 24 . . . 93 93 . 159 281 39 351 41 139 . 27 Projectiles 264 | . . . . . . . . . 47 19 159 39 . . . Explosions 301 | . . . . . . . . 33 159 . 107 2 . . . Melee 682 | . 24 . . . 93 93 . 126 75 20 85 . 139 . 27 Knockbacks 4 | 1 1 1 . . . . . 1 . . . . . . . Impact 4 | 1 1 1 . . . . . 1 . . . . . . . Kinetic . | . . . . . . . . . . . . . . . . Secondary . | . . . . . . . . . . . . . . . . Self-Inflicted Damage 152 | . . . . . . . . 30 74 . 20 . . 28 . Shots 8 | . . . . . . . . 3 3 . 1 . . 1 . Rammed 8 | 7 1 . . . . . . . . . . . . . . Targets Rammed 8 | 7 1 . . . . . . . . . . . . . . Kicked . | . . . . . . . . . . . . . . . . Crushed . | . . . . . . . . . . . . . . . . Highest Temperature 387 | 60 197 153 . . 132 33 94 171 387 94 64 42 72 51 55 Average Temperature 60 | 24 53 60 . . 32 13 39 89 135 28 22 13 25 19 22 Received Heat Transfer 2247 | . 270 210 . 15 126 108 105 18 537 216 306 111 36 135 54 Effects 4 | . . . . . . . . . 4 . . . . . . Shutdowns 1 | . . . . . . . . . 1 . . . . . . Interference 2 | . . . . . . . . . 2 . . . . . . Damage (minor) 1 | . . . . . . . . . 1 . . . . . . Siege Activations . | . . . . . . . . . . . . . . . . Robots Corrupted 1 | . . . . . . . . . . . . . . 1 . Combat Hostiles 1 | . . . . . . . . . . . . . . 1 . Parts Fried 15 | . 5 . . . 3 . . . 4 . . . . 3 . Impact Corruptions 7 | . 2 . . . . . . 5 . . . . . . . Robots Melted 3 | . . 1 . . . . . . . . 2 . . . . Combat Hostiles 3 | . . 1 . . . . . . . . 2 . . . . Parts Melted 23 | 2 2 2 . . 5 2 1 . 1 . 6 2 . . . Heat Transferred 14478 | 481 1295 925 . 296 3145 1443 943 437 1627 435 2503 750 198 . . Parts Sabotaged . | . . . . . . . . . . . . . . . . Parts Stolen . | . . . . . . . . . . . . . . . . Parts Stripped . | . . . . . . . . . . . . . . . . Power Chain Reactions 10 | . . . . . . . . 2 6 . . 1 1 . . Missiles Intercepted . | . . . . . . . . . . . . . . . . Alert | -11 -10 -10 -10 -9 -8 -8 -8 -8 -6 -6 -5 -5 -5 -5 -4 ------- Run | Scr Mat Min Exi Min Mat Sto Gar Rec Fac Gar Fac Gar Fac Gar Fac Peak Influence 1077 | 30 129 80 . 92 417 599 979 318 1077 493 651 589 229 699 704 Average Influence 183 | 19 44 25 . 30 125 71 681 70 220 234 226 382 49 482 346 Maximum Alert Level 3 | . . . . . 2 2 3 1 3 2 2 2 1 2 3 Low Security (%) 71 | 100 100 100 . 100 73 89 20 98 71 56 48 . 97 8 29 Level 1 12 | . . . . . 26 6 1 1 7 17 32 59 2 17 36 Level 2 10 | . . . . . . 4 14 . 12 25 19 40 . 74 14 Level 3 5 | . . . . . . . 64 . 7 . . . . . 19 Level 4 . | . . . . . . . . . . . . . . . . Level 5 . | . . . . . . . . . . . . . . . . High Security . | . . . . . . . . . . . . . . . . Max Security . | . . . . . . . . . . . . . . . . Squads Dispatched 51 | . . . . 1 2 6 . . 23 . 11 . 6 . 2 Investigation 7 | . . . . 1 1 2 . . 1 . 1 . 1 . . Extermination 14 | . . . . . . . . . 9 . 3 . 2 . . Reinforcement 13 | . . . . . 1 1 . . 4 . 3 . 3 . 1 Assault 1 | . . . . . . . . . . . 1 . . . . Garrison 16 | . . . . . . 3 . . 9 . 3 . . . 1 Intercept . | . . . . . . . . . . . . . . . . Construction Impeded 2 | . . . . . . . . . 1 . . . . . 1 Haulers Reinforced 4 | . . . . . . . . . 2 . 2 . . . . Stealth | -11 -10 -10 -10 -9 -8 -8 -8 -8 -6 -6 -5 -5 -5 -5 -4 --------- Run | Scr Mat Min Exi Min Mat Sto Gar Rec Fac Gar Fac Gar Fac Gar Fac Distress Signals 7 | . 1 . . . 2 . . . 1 . 2 . . . 1 Communications Jammed . | . . . . . . . . . . . . . . . . Distress Signals . | . . . . . . . . . . . . . . . . Times Spotted 390 | . 14 9 . 4 37 20 22 21 78 32 60 21 24 27 21 Peak Tracking Total 12 | . 3 3 . 2 5 4 11 4 6 12 7 6 3 7 6 Tactical Retreats 13 | . . . . . . . 1 . 2 2 3 3 1 1 . Traps | -11 -10 -10 -10 -9 -8 -8 -8 -8 -6 -6 -5 -5 -5 -5 -4 ------- Run | Scr Mat Min Exi Min Mat Sto Gar Rec Fac Gar Fac Gar Fac Gar Fac Traps Triggered 21 | . 1 . . . . 2 3 . 2 3 1 5 3 . 1 Indirectly 1 | . . . . . . . . . . . . 1 . . . Trap Hack Attempts 23 | . . . . . . . . . 3 . . . . 16 4 Triggered . | . . . . . . . . . . . . . . . . Disarmed . | . . . . . . . . . . . . . . . . Reprogrammed 42 | . . . . . 8 9 . . 11 . . . 7 5 2 Reused 5 | . . . . . . 1 . . 2 . . . 1 . 1 Traps Extracted 30 | . . . . . . . . . 30 . . . . . . Installed 29 | . . . . . . . . . 29 . . . . . . Triggered 5 | . . . . . . 1 . . 2 . . . 1 . 1 Machines | -11 -10 -10 -10 -9 -8 -8 -8 -8 -6 -6 -5 -5 -5 -5 -4 ---------- Run | Scr Mat Min Exi Min Mat Sto Gar Rec Fac Gar Fac Gar Fac Gar Fac Machines Disabled 54 | . . . . 1 2 6 5 9 5 5 6 2 2 5 6 Max in Single Turn 6 | . . . . 1 1 1 1 6 3 2 4 1 . 2 . Garrison Relay 10 | . . . . . . . 2 . . 3 . 2 . 3 . Phase Generator 3 | . . . . . . . 1 . . 1 . . . 1 . Machines Sabotaged . | . . . . . . . . . . . . . . . . Garrisons Compromised . | . . . . . . . . . . . . . . . . Overloaded Fab Kills . | . . . . . . . . . . . . . . . . Fab Network Shutdowns 2 | . . . . . . . . . 1 . 1 . . . . Hacking | -11 -10 -10 -10 -9 -8 -8 -8 -8 -6 -6 -5 -5 -5 -5 -4 --------- Run | Scr Mat Min Exi Min Mat Sto Gar Rec Fac Gar Fac Gar Fac Gar Fac Machines Accessed 97 | . 10 1 1 1 14 17 . 9 16 . 11 . 14 . 3 Terminals 65 | . 8 1 . . 9 14 . 5 10 . 6 . 10 . 2 Fabricators 8 | . . . . . . . . . 3 . 3 . 2 . . Repair Stations 3 | . . . . . 2 . . . . . . . 1 . . Recycling Units 10 | . 2 . . . . 2 . 4 2 . . . . . . Scanalyzers 2 | . . . . . 2 . . . . . . . . . . Garrison Access 7 | . . . . . 1 1 . . 1 . 2 . 1 . 1 Total Hacks 613 | . 74 22 1 1 85 157 . 57 69 . 79 . 57 . 11 Successful 553 | . 64 18 1 1 74 140 . 56 61 . 72 . 57 . 9 Failed 60 | . 10 4 . . 11 17 . 1 8 . 7 . . . 2 Catastrophic 2 | . . . . . 1 . . . 1 . . . . . . Database Lockouts . | . . . . . . . . . . . . . . . . Manual 511 | . 64 22 1 . 75 139 . 36 55 . 68 . 41 . 10 Terminals 507 | . 65 22 . . 76 140 . 32 48 . 65 . 49 . 10 Fabricators 23 | . . . . . . . . . 11 . 7 . 5 . . Repair Stations 3 | . . . . . 2 . . . . . . . 1 . . Recycling Units 54 | . 9 . . . . 14 . 25 6 . . . . . . Scanalyzers 6 | . . . . . 6 . . . . . . . . . . Garrison Access 18 | . . . . . 1 3 . . 4 . 7 . 2 . 1 Terminal Hacks 334 | . 47 16 1 1 52 81 . 22 30 . 49 . 30 . 5 Record 35 | . 3 . . . . 26 . 3 . . 1 . 2 . . Part Schematic 48 | . 8 . . . 3 11 . 6 5 . 10 . 5 . . Robot Schematic 7 | . 2 . . . . 4 . . . . . . . . 1 Robot Analysis 56 | . 13 . . . 14 . . 1 14 . 14 . . . . Prototype ID Bank 105 | . 16 15 . . 26 20 . 4 . . 15 . 9 . . Open Door 5 | . . . . 1 . 4 . . . . . . . . . Branch Access Points 1 | . . . . . . . . . 1 . . . . . . Fabricator Index 3 | . . . . . 1 1 . . . . . . 1 . . Garrison Index 2 | . . . . . . . . . . . 1 . 1 . . Alert Level 1 | . . . . . . . . . . . 1 . . . . Unreport Threat 49 | . 3 1 . . 4 8 . 7 8 . 7 . 7 . 4 Locate Traps 1 | . . . . . . . . . . . . . 1 . . Reprogram Traps 9 | . . . . . 2 3 . . 2 . . . 2 . . Security Status 1 | . . . . . 1 . . . . . . . . . . Patrol Status 1 | . . . . . . 1 . . . . . . . . . Transport Status 2 | . 1 . . . . 1 . . . . . . . . . Garrison Status 1 | . . . . . . 1 . . . . . . . . . Recall Reinforcements 1 | . . . . . . . . . . . . . 1 . . Hauler Manifests 5 | . 1 . . . 1 1 . 1 . . . . 1 . . EX-Prototype ID Bank 1 | . . . 1 . . . . . . . . . . . . Fabricator Hacks 20 | . . . . . . . . . 8 . 7 . 5 . . Load Schematic 8 | . . . . . . . . . 4 . 2 . 2 . . Build 12 | . . . . . . . . . 4 . 5 . 3 . . Repair Station Hacks . | . . . . . . . . . . . . . . . . Recycling Unit Hacks 19 | . 4 . . . . 5 . 7 3 . . . . . . Process 3 | . 1 . . . . 1 . 1 . . . . . . . Report Inventory 10 | . 2 . . . . 2 . 4 2 . . . . . . Retrieve Matter 3 | . . . . . . 1 . 2 . . . . . . . Retrieve Components 3 | . 1 . . . . 1 . . 1 . . . . . . Scanalyzer 5 | . . . . . 5 . . . . . . . . . . Insert Component 2 | . . . . . 2 . . . . . . . . . . Analyze 3 | . . . . . 3 . . . . . . . . . . Garrison Access Hacks 5 | . . . . . . 1 . . 1 . 2 . 1 . . Unlock Access 5 | . . . . . . 1 . . 1 . 2 . 1 . . Unauthorized Hacks 341 | . 25 4 . . 34 107 . 54 38 . 29 . 42 . 8 Terminals 116 | . 8 2 . . 13 42 . 9 10 . 10 . 19 . 3 Track 17 | . 2 1 . . . 7 . 1 1 . 1 . 4 . . Assimilate 4 | . . . . . 2 . . . . . . . 2 . . Botnet 60 | . 6 . . . 9 14 . 5 9 . 6 . 9 . 2 Detonate 9 | . . 1 . . . 6 . 1 . . 1 . . . . Disrupt 18 | . . . . . 2 11 . 1 . . 2 . 2 . . Operators 7 | . . . . . . 4 . 1 . . . . 1 . 1 Search 1 | . . . . . . . . . . . . . 1 . . Fabricators 3 | . . . . . . . . . 3 . . . . . . Prioritize 1 | . . . . . . . . . 1 . . . . . . Siphon 2 | . . . . . . . . . 2 . . . . . . Repair Stations 3 | . . . . . 2 . . . . . . . 1 . . Mechanics 3 | . . . . . 2 . . . . . . . 1 . . Recycling Units 34 | . 4 . . . . 9 . 18 3 . . . . . . Monitor 8 | . 1 . . . . 2 . 4 1 . . . . . . Reject 5 | . 1 . . . . 1 . 3 . . . . . . . Recyclers 7 | . 1 . . . . 2 . 3 1 . . . . . . Mask 8 | . 1 . . . . 2 . 4 1 . . . . . . Tunnel 6 | . . . . . . 2 . 4 . . . . . . . Scanalyzers 1 | . . . . . 1 . . . . . . . . . . Extract 1 | . . . . . 1 . . . . . . . . . . Garrison Access 12 | . . . . . 1 2 . . 3 . 4 . 1 . 1 Reprogram 11 | . . . . . 1 2 . . 3 . 3 . 1 . 1 Eject 1 | . . . . . . . . . . . 1 . . . . Data Cores Recovered 1 | . . . . . 1 . . . . . . . . . . Used . | . . . . . . . . . . . . . . . . Hacking Detections 79 | . 10 1 . . 12 11 . 5 14 . 10 . 13 . 3 Full Trace Events 1 | . . . . . . . . . 1 . . . . . . Feedback Events . | . . . . . . . . . . . . . . . . Feedback Blocked . | . . . . . . . . . . . . . . . . Robot Schematics Acquired 7 | . 2 . . . . 4 . . . . . . . . 1 Robots Built 3 | . . . . . . . . . . . 3 . . . . Matter 252 | . . . . . . . . . . . 252 . . . . Time 67 | . . . . . . . . . . . 67 . . . . Total Robot Build Rating 12 | . . . . . . . . . . . 12 . . . . Part Schematics Acquired 50 | . 8 . . . 6 10 . 6 5 . 10 . 5 . . Parts Built 9 | . . . . . . . . . 4 . 2 . 3 . . Matter 1623 | . . . . . . . . . 585 . 380 . 658 . . Time 444 | . . . . . . . . . 205 . 94 . 145 . . Total Part Build Rating 51 | . . . . . . . . . 22 . 10 . 19 . . Parts Repaired . | . . . . . . . . . . . . . . . . Time . | . . . . . . . . . . . . . . . . Parts Recycled . | . . . . . . . . . . . . . . . . Recycled Matter 243 | . 1 . . . . 176 . 66 . . . . . . . Retrieved Matter 242 | . . . . . . 176 . 66 . . . . . . . Retrieved Components 15 | . 3 . . . . 10 . . 2 . . . . . . Parts Scanalyzed 2 | . . . . . 2 . . . . . . . . . . Part Schematics Acquired 2 | . . . . . 2 . . . . . . . . . . Parts Damaged . | . . . . . . . . . . . . . . . . Bothacking | -11 -10 -10 -10 -9 -8 -8 -8 -8 -6 -6 -5 -5 -5 -5 -4 ------------ Run | Scr Mat Min Exi Min Mat Sto Gar Rec Fac Gar Fac Gar Fac Gar Fac Used RIF Installer 4 | . . . . . . . 1 . . 1 . 1 . 1 . Coupler Efficiency 1 | . . . . . . . . . . 1 . . . . . Program Shield 1 | . . . . . . . . . . . . 1 . . . Autooverride 1 | . . . . . . . . . . . . . . 1 . Robots Hacked 84 | . 2 . . . 1 . . 7 22 10 14 9 9 8 2 Non-combat 30 | . 2 . . . 1 . . 7 14 . 3 . 2 . 1 Combat 54 | . . . . . . . . . 8 10 11 9 7 8 1 Robot Hacks Applied 105 | . 2 . . . 1 . . 8 40 10 15 9 10 8 2 parse_system 9 | . 1 . . . 1 . . 1 3 1 . . 1 . 1 no_distress 6 | . 1 . . . . . . . 5 . . . . . . generate_anomaly 1 | . . . . . . . . 1 . . . . . . . generate_echo 1 | . . . . . . . . 1 . . . . . . . start_evac 1 | . . . . . . . . . 1 . . . . . . map_walls 1 | . . . . . . . . . 1 . . . . . . find_fabricator 3 | . . . . . . . . . 3 . . . . . . drop_inventory 4 | . . . . . . . . . . . 3 . . . 1 locate_stockpiles 1 | . . . . . . . . . 1 . . . . . . ignore_parts 1 | . . . . . . . . 1 . . . . . . . map_route 2 | . . . . . . . . . 2 . . . . . . relay_feed 1 | . . . . . . . . . 1 . . . . . . find_shortcuts 1 | . . . . . . . . . 1 . . . . . . find_garrison 1 | . . . . . . . . . 1 . . . . . . link_fov 1 | . . . . . . . . 1 . . . . . . . focus_fire 1 | . . . . . . . . . 1 . . . . . . mark_system 1 | . . . . . . . . . 1 . . . . . . broadcast_data 1 | . . . . . . . . . 1 . . . . . . disrupt_area 1 | . . . . . . . . . 1 . . . . . . spike_heat 1 | . . . . . . . . . . . 1 . . . . overload_power 7 | . . . . . . . . . 3 2 . 2 . . . amplify_resonance 3 | . . . . . . . . 1 1 . 1 . . . . wipe_record 1 | . . . . . . . . . 1 . . . . . . disable_weapons 2 | . . . . . . . . . . 1 . . 1 . . reboot_system 3 | . . . . . . . . . 1 . 2 . . . . go_dormant 1 | . . . . . . . . . . . 1 . . . . overwrite_iff 11 | . . . . . . . . . 3 1 2 2 2 1 . streamctrl_low 3 | . . . . . . . . 1 2 . . . . . . streamctrl_high 2 | . . . . . . . . . 2 . . . . . . formatsys_low 7 | . . . . . . . . 1 4 . . . 2 . . formatsys_high 26 | . . . . . . . . . . 5 5 5 4 7 . Relay Couplers Released 21 | . . . . . . . 3 . 1 6 2 4 . 5 . Ejected 2 | . . . . . . . . . . . 2 . . . . Machine Destruction 18 | . . . . . . . 3 . . 6 . 4 . 5 . Programmers 1 | . . . . . . . . . 1 . . . . . . Attached 16 | . . . . . . . 1 1 1 5 2 2 1 3 . Robots Rewired 11 | . . . . . . . . 11 . . . . . . . Allies Hacked 4 | . . . . . . . . . 3 . . . 1 . . Hacks Repelled . | . . . . . . . . . . . . . . . . Allies | -11 -10 -10 -10 -9 -8 -8 -8 -8 -6 -6 -5 -5 -5 -5 -4 -------- Run | Scr Mat Min Exi Min Mat Sto Gar Rec Fac Gar Fac Gar Fac Gar Fac Total Allies 95 | . . 3 . 2 3 14 . 13 14 6 12 7 13 8 . Largest Group 19 | . . 3 3 5 6 17 16 19 13 2 6 3 7 10 8 Highest-Rated Group 435 | . . 40 40 89 117 304 283 284 200 79 217 147 263 435 392 Highest-Rated Ally 49 | . . 16 16 31 31 31 31 31 32 47 49 49 49 49 49 Total Orders 24 | . . . . . 2 14 . . 5 . 1 . . 2 . STAY 3 | . . . . . 1 1 . . . . 1 . . . . GOTO 12 | . . . . . . 10 . . 1 . . . . 1 . FOLLOW 6 | . . . . . 1 3 . . 1 . . . . 1 . DROP 3 | . . . . . . . . . 3 . . . . . . Ally Attacks 716 | . . . . 1 37 23 81 180 91 20 76 36 36 89 46 Total Damage 14012 | . . . . 17 504 345 1069 1324 1562 343 2032 1065 633 2361 2757 Kills 141 | . . . . 1 4 5 13 36 15 6 12 6 6 20 17 Allies Corrupted 1 | . . . . . . . . . 1 . . . . . . Allies Melted 1 | . . . . . . . . . . . . 1 . . . Intel | -11 -10 -10 -10 -9 -8 -8 -8 -8 -6 -6 -5 -5 -5 -5 -4 ------- Run | Scr Mat Min Exi Min Mat Sto Gar Rec Fac Gar Fac Gar Fac Gar Fac Robot Analysis Total 55 | . 13 . . . 14 . . 1 14 . 13 . . . . Derelict Logs Recovered 2 | . . 1 . 1 . . . . . . . . . . . Drone Launches 19 | . . . . . . 16 . . . . 3 . . . . Drone Recoveries . | . . . . . . . . . . . . . . . . Exploration | -11 -10 -10 -10 -9 -8 -8 -8 -8 -6 -6 -5 -5 -5 -5 -4 ------------- Run | Scr Mat Min Exi Min Mat Sto Gar Rec Fac Gar Fac Gar Fac Gar Fac Turns Passed 15730 | 247 992 684 408 392 1639 1343 717 950 3452 551 1462 462 1449 527 455 Spaces Moved 9866 | 129 510 477 333 310 1186 967 499 600 2178 258 824 223 848 280 244 Core 26 | 26 . . . . . . . . . . . . . . . Treads 486 | 103 383 . . . . . . . . . . . . . . Legs 9354 | . 127 477 333 310 1186 967 499 600 2178 258 824 223 848 280 244 Wheels . | . . . . . . . . . . . . . . . . Hover . | . . . . . . . . . . . . . . . . Flight . | . . . . . . . . . . . . . . . . Fastest Speed 50 | 50 150 120 120 120 120 120 120 120 120 120 120 150 120 120 120 Average Speed 128 | 141 157 125 120 120 120 120 120 124 125 130 136 150 130 136 149 Slowest Speed 160 | 160 160 150 120 120 150 120 120 125 130 150 150 150 150 150 150 Overloaded Moves . | . . . . . . . . . . . . . . . . Propulsion Burnouts . | . . . . . . . . . . . . . . . . Robots Hopped . | . . . . . . . . . . . . . . . . Cave-ins Triggered . | . . . . . . . . . . . . . . . . Exploration Rate (%) 60 | 5 92 82 68 95 92 90 85 95 50 72 21 32 27 54 8 Regions Visited 15 Branch Regions 5 Pre-discovered Areas 8 | . . 1 . 1 . 2 . 4 . . . . . . . Known Exits Taken 11 | 1 1 1 1 1 1 1 . 1 1 . 1 . 1 . . Unknown Exits Taken . | . . . . . . . . . . . . . . . . Scrap Searched . | . . . . . . . . . . . . . . . . Spaces Dug 53 | . . . . . 10 8 . 2 5 8 5 8 6 1 . Terrain Destroyed 382 | . . . . . 13 24 59 42 38 92 82 15 9 8 . Melee 53 | . . . . . 10 8 . 2 5 8 5 8 6 1 . Projectile 9 | . . . . . 3 2 . . 2 . 1 . 1 . . AOE 320 | . . . . . . 14 59 40 31 84 76 7 2 7 . Actions | -11 -10 -10 -10 -9 -8 -8 -8 -8 -6 -6 -5 -5 -5 -5 -4 --------- Run | Scr Mat Min Exi Min Mat Sto Gar Rec Fac Gar Fac Gar Fac Gar Fac Total 11888 | 166 615 530 342 330 1318 1096 578 772 2646 380 1037 298 1113 376 291 Wait 521 | . 15 14 1 11 10 75 3 115 71 2 35 . 158 3 8 Move 9847 | 128 509 476 332 309 1185 966 497 599 2177 256 823 221 847 278 244 Hop . | . . . . . . . . . . . . . . . . Pick Up 25 | . 3 . . . 4 1 2 . 6 1 1 1 3 3 . Fast Attach 95 | 9 4 3 4 . 13 1 5 2 25 7 10 1 8 1 2 Attach 11 | . 1 . . . 1 . 3 1 . . 1 . 3 1 . Detach 18 | 1 1 . 2 . 4 . 1 1 3 1 1 1 . 2 . Swap 64 | . 4 . . . 15 1 . . 16 2 9 3 9 4 1 Drop 82 | . 6 3 3 . 8 1 4 1 32 4 8 1 7 2 2 Fire 420 | 21 41 27 . . 37 8 11 7 86 22 72 27 26 27 8 Melee 347 | . 15 3 . . 19 25 18 32 105 39 29 16 20 9 17 Ram . | . . . . . . . . . . . . . . . . Kick . | . . . . . . . . . . . . . . . . Crush 8 | 7 1 . . . . . . . . . . . . . . Escape Stasis 30 | . . . . . . . 15 . . 15 . . . . . Rewire 18 | . . . . . . . . 2 4 . 11 . 1 . . Trap 52 | . . . . . . . . . 32 . . . . 16 4 Miscellaneous 350 | . 15 4 . 10 22 18 19 12 89 31 37 27 31 30 5 Route ------- -11/Scrapyard -10/Materials (discovered 5 exits: *Mat x3 / *Min x2) -10/Mines (discovered 3 exits: *Mat x2 / *Exi) -10/Exiles (discovered 2 exits: *Min x2) -9/Mines (discovered 2 exits: *Mat x2) -8/Materials (discovered 4 exits: *Fac x3 / *Sto) -8/Storage (discovered 3 exits: *Fac / *Rec / Gar) -8/Garrison (discovered 3 exits: *Rec x3) -8/Recycling -6/Factory (discovered 5 exits: *Fac x2 / Low x2 / Gar) -6/Garrison (discovered 2 exits: *Fac x2) -5/Factory (discovered 3 exits: *Fac / Gar / Gar) -5/Garrison -5/Factory (discovered 6 exits: *Fac x2 / *Upp / *Ext x2 / Gar) -5/Garrison (discovered 2 exits: *Fac x2) -4/Factory History --------- Turn | Location | Event 20 | -11/Scrapyard | Upgraded with Utility slot (x2) 23 | -11/Scrapyard | Identified exit to Materials 23 | -11/Scrapyard | Discovered exit to Materials (range 15) 169 | -11/Scrapyard | Upgraded with Utility slot (x1) 169 | -11/Scrapyard | Upgraded with Weapon slot (x1) 248 | -11/Scrapyard | Entered Materials 308 | -10/Materials | Build established: Hacker-Mutant 364 | -10/Materials | Identified exit to Mines 364 | -10/Materials | Discovered exit to Mines (range 16) 614 | -10/Materials | Identified exit to Materials 614 | -10/Materials | Discovered exit to Materials (range 16) 910 | -10/Materials | Discovered exit to Materials (range 12) 936 | -10/Materials | Build established: Hacker-Assassin 1024 | -10/Materials | Discovered exit to Mines (range 12) 1125 | -10/Materials | Discovered exit to Materials (range 15) 1240 | -10/Materials | Entered Mines 1242 | -10/Mines | Reached level 2 1286 | -10/Mines | Assembled infested the area 1304 | -10/Mines | Met a Derelict bent on vengeance 1529 | -10/Mines | Found a damaged Exp. Sensor Array with a note attached 1533 | -10/Mines | Found Prototype Device 1533 | -10/Mines | Identified Exp. Sensor Array 1553 | -10/Mines | Learned location of Storage (-8) 1617 | -10/Mines | Discovered exit to Materials (range 12) 1809 | -10/Mines | Learned Materials stockpile data 1833 | -10/Mines | Identified exit to Exiles 1833 | -10/Mines | Discovered exit to Exiles (range 15) 1840 | -10/Mines | Discovered exit to Materials (range 3) 1846 | -10/Mines | Assisted by bots powering up and referring to "LRC-V3" 1924 | -10/Mines | Entered Exiles 1924 | -10/Exiles | Accompanied by 3 allies 1940 | -10/Exiles | Identified exit to Mines 1940 | -10/Exiles | Discovered exit to Mines (range 15) 1957 | -10/Exiles | Met 8R-AWN 1975 | -10/Exiles | Met EX-HEX 2006 | -10/Exiles | Met EX-BIN 2035 | -10/Exiles | Met EX-DEC 2106 | -10/Exiles | Aligned with FarCom system 2107 | -10/Exiles | Given EX-Vault access code 2137 | -10/Exiles | Opened EX-Vault 2147 | -10/Exiles | Found 0b10 Alert Chip 2150 | -10/Exiles | Found Modified TNC 2161 | -10/Exiles | Found AWS/Thermal 2186 | -10/Exiles | Warned to stay clear of 0b10 Research branches 2318 | -10/Exiles | Discovered exit to Mines (range 10) 2332 | -10/Exiles | Stole two prototypes: 0b10 Alert Chip, AWS/Thermal 2332 | -10/Exiles | Entered Mines 2332 | -9/Mines | Accompanied by 3 allies 2334 | -9/Mines | Reached level 3 2336 | -9/Mines | A weapon hastily lodged in a ceiling crevice suddenly fell to the ground 2398 | -9/Mines | Joined a pair of Derelicts in attacking an 0b10 outpost 2429 | -9/Mines | Build established: Hacker-Skirmisher 2448 | -9/Mines | Met a Derelict shopkeep closing up shop 2535 | -9/Mines | Identified exit to Materials 2535 | -9/Mines | Discovered exit to Materials (range 9) 2623 | -9/Mines | Discovered exit to Materials (range 16) 2724 | -9/Mines | Entered Materials 2724 | -8/Materials | Accompanied by 5 allies 2726 | -8/Materials | Reached level 4 2726 | -8/Materials | Reached level 5 2726 | -8/Materials | Reached level 6 2729 | -8/Materials | Led the pair of lost Derelicts to an unsafe place 2771 | -8/Materials | Upgraded with Propulsion slot (x1) 2771 | -8/Materials | Upgraded with Weapon slot (x1) 2830 | -8/Materials | Upgraded with Utility slot (x2) 2923 | -8/Materials | Reached level 7 2924 | -8/Materials | Identified exit to Factory 2924 | -8/Materials | Discovered exit to Factory (range 15) 3135 | -8/Materials | Upgraded with Utility slot (x1) 3148 | -8/Materials | Discovered exit to Factory (range 10) 3191 | -8/Materials | Reached level 8 3260 | -8/Materials | Upgraded with Utility slot (x1) 3493 | -8/Materials | Discovered exit to Factory (range 16) 4011 | -8/Materials | Build established: Wizard-Assassin 4229 | -8/Materials | Identified exit to Storage 4229 | -8/Materials | Discovered exit to Storage (range 9) 4230 | -8/Materials | Reached level 9 4254 | -8/Materials | Upgraded with Weapon slot (x1) 4363 | -8/Materials | Entered Storage 4363 | -8/Storage | Accompanied by 6 allies 4372 | -8/Storage | Reached level 10 4373 | -8/Storage | Assisted by bots powering up and referring to "LRC-V3" 4624 | -8/Storage | Garrison activated, responded to threat 4634 | -8/Storage | Reached level 11 4668 | -8/Storage | Destroyed 7 combat bots 4713 | -8/Storage | Upgraded with Utility slot (x1) 4789 | -8/Storage | Reached level 12 4837 | -8/Storage | Discovered exit to Factory (range 19) 5079 | -8/Storage | Identified exit to Recycling 5079 | -8/Storage | Discovered exit to Recycling (range 18) 5106 | -8/Storage | Used back door to open Recycling access 5504 | -8/Storage | Identified exit to Garrison 5706 | -8/Storage | Entered Garrison 5706 | -8/Garrison | Accompanied by 16 allies 5738 | -8/Garrison | Triggered checkpoint 5774 | -8/Garrison | Garrison Relay disabled 5781 | -8/Garrison | Upgraded with Weapon slot (x1) 5848 | -8/Garrison | Triggered checkpoint 5858 | -8/Garrison | Triggered checkpoint 5858 | -8/Garrison | Reached level 13 5892 | -8/Garrison | Triggered checkpoint 5908 | -8/Garrison | Triggered checkpoint 5922 | -8/Garrison | Discovered exit to Recycling (range 8) 5946 | -8/Garrison | Triggered checkpoint 5960 | -8/Garrison | Garrison Relay disabled 6082 | -8/Garrison | Discovered exit to Recycling (range 8) 6138 | -8/Garrison | Triggered checkpoint 6239 | -8/Garrison | Spotted B-75 Beast 6258 | -8/Garrison | Allies destroyed B-75 Beast 6292 | -8/Garrison | Phase Generator disabled 6392 | -8/Garrison | Discovered exit to Recycling (range 5) 6402 | -8/Garrison | Installed Relay Interface Framework 6423 | -8/Garrison | Entered Recycling 6423 | -8/Recycling | Accompanied by 10 allies 6440 | -8/Recycling | Spotter reported a threat 6449 | -8/Recycling | Spotter reported a threat 6462 | -8/Recycling | Spotter reported a threat 6474 | -8/Recycling | Spotter reported a threat 6496 | -8/Recycling | Spotter reported a threat 6577 | -8/Recycling | Spotter reported a threat 6577 | -8/Recycling | Spotter reported a threat 6620 | -8/Recycling | Spotter reported a threat 6647 | -8/Recycling | Spotter reported a threat 6648 | -8/Recycling | Spotter reported a threat 6666 | -8/Recycling | Reached level 14 6673 | -8/Recycling | Spotter reported a threat 6692 | -8/Recycling | Spotter reported a threat 6730 | -8/Recycling | Spotter reported a threat 6744 | -8/Recycling | Spotter reported a threat 6744 | -8/Recycling | Spotter reported a threat 6744 | -8/Recycling | Spotter reported a threat 6790 | -8/Recycling | Spotter reported a threat 6790 | -8/Recycling | Spotter reported a threat 6790 | -8/Recycling | Spotter reported a threat 6790 | -8/Recycling | Spotter reported a threat 6842 | -8/Recycling | Spotter reported a threat 6844 | -8/Recycling | Spotter reported a threat 6844 | -8/Recycling | Spotter reported a threat 6845 | -8/Recycling | Spotter reported a threat 6860 | -8/Recycling | Identified exit to Factory 6860 | -8/Recycling | Discovered exit to Factory (range 16) 6892 | -8/Recycling | Spotter reported a threat 6892 | -8/Recycling | Spotter reported a threat 6916 | -8/Recycling | Spotter reported a threat 6944 | -8/Recycling | Spotter reported a threat 6944 | -8/Recycling | Spotter reported a threat 6944 | -8/Recycling | Spotter reported a threat 7026 | -8/Recycling | Spotter reported a threat 7075 | -8/Recycling | Spotter reported a threat 7081 | -8/Recycling | Spotter reported a threat 7117 | -8/Recycling | Spotter reported a threat 7134 | -8/Recycling | Spotter reported a threat 7137 | -8/Recycling | Spotter reported a threat 7161 | -8/Recycling | Spotter reported a threat 7176 | -8/Recycling | Spotter reported a threat 7187 | -8/Recycling | Spotter reported a threat 7200 | -8/Recycling | Spotter reported a threat 7200 | -8/Recycling | Spotter reported a threat 7201 | -8/Recycling | Spotter reported a threat 7201 | -8/Recycling | Spotter reported a threat 7247 | -8/Recycling | Spotter reported a threat 7247 | -8/Recycling | Spotter reported a threat 7247 | -8/Recycling | Spotter reported a threat 7248 | -8/Recycling | Spotter reported a threat 7276 | -8/Recycling | Upgraded with Utility slot (x1) 7300 | -8/Recycling | Spotter reported a threat 7373 | -8/Recycling | Entered Factory 7373 | -6/Factory | Accompanied by 13 allies 7375 | -6/Factory | FarCom data flow suspended 7375 | -6/Factory | Reached level 15 7527 | -6/Factory | Garrison activated, responded to threat 7624 | -6/Factory | Reached level 16 7659 | -6/Factory | P-60 Hacker assimilated allied Bruiser 3a 7662 | -6/Factory | P-60 Hacker assimilated allied Defender 3b 7667 | -6/Factory | P-60 Hacker assimilated allied Trooper 3g 7692 | -6/Factory | Core integrity fell below 50% 7719 | -6/Factory | Upgraded with Utility slot (x1) 8085 | -6/Factory | Garrison activated, responded to threat 8377 | -6/Factory | Reached level 17 8491 | -6/Factory | Identified exit to Garrison 8844 | -6/Factory | Identified exit to Factory 8844 | -6/Factory | Discovered exit to Factory (range 20) 8916 | -6/Factory | Reached level 18 9223 | -6/Factory | Found Prototype Processor 9224 | -6/Factory | Identified Exp. Targeting Computer 9460 | -6/Factory | Fabricated Adv. Trap Extractor (x2) 9676 | -6/Factory | Fabricated Exp. Terrain Scanner? 9794 | -6/Factory | Fabricated Exp. Terrain Scan Processor (x1) 9872 | -6/Factory | Local fabrication network quarantined 10134 | -6/Factory | Discovered exit to Factory (range 23) 10321 | -6/Factory | Identified exit to Lower Caves 10789 | -6/Factory | Build established: Wizard-Mutant 10825 | -6/Factory | Entered Garrison 10827 | -6/Garrison | Reached level 19 10831 | -6/Garrison | Expanded RIF knowledge: Coupler Efficiency 10868 | -6/Garrison | Triggered checkpoint 10903 | -6/Garrison | Upgraded with Utility slot (x1) 10913 | -6/Garrison | Garrison Relay disabled 11017 | -6/Garrison | Discovered exit to Factory (range 30) 11023 | -6/Garrison | Garrison Relay disabled 11034 | -6/Garrison | Triggered checkpoint 11139 | -6/Garrison | Phase Generator disabled 11188 | -6/Garrison | Triggered checkpoint 11218 | -6/Garrison | Triggered checkpoint 11229 | -6/Garrison | Discovered exit to Factory (range 26) 11276 | -6/Garrison | Triggered checkpoint 11319 | -6/Garrison | Garrison Relay disabled 11376 | -6/Garrison | Entered Factory 11378 | -5/Factory | Reached level 20 11462 | -5/Factory | Identified exit to Factory 11462 | -5/Factory | Discovered exit to Factory (range 19) 11483 | -5/Factory | Garrison activated, responded to threat 11541 | -5/Factory | Reached level 21 11590 | -5/Factory | Identified exit to Garrison 11890 | -5/Factory | Fabricated L-41 Fighter? 11906 | -5/Factory | Fabricated Imp. Hacking Suite (x1) 11971 | -5/Factory | Local fabrication network quarantined 11974 | -5/Factory | Fabricated Imp. Hacking Suite (x1) 11976 | -5/Factory | First assault squad dispatched 12477 | -5/Factory | Reached level 22 12556 | -5/Factory | Upgraded with Utility slot (x1) 12582 | -5/Factory | Core integrity fell below 50% 12611 | -5/Factory | Spotted B-75 Beast 12835 | -5/Factory | Identified exit to Garrison 12838 | -5/Factory | Entered Garrison 12838 | -5/Garrison | Accompanied by 1 ally 12896 | -5/Garrison | Triggered checkpoint 12940 | -5/Garrison | Garrison Relay disabled 13030 | -5/Garrison | Triggered checkpoint 13100 | -5/Garrison | Identified exit to Factory 13100 | -5/Garrison | Discovered exit to Factory (range 30) 13155 | -5/Garrison | Garrison Relay disabled 13291 | -5/Garrison | Expanded RIF knowledge: Program Shield 13300 | -5/Garrison | Entered Factory 13300 | -5/Factory | Accompanied by 3 allies 13481 | -5/Factory | Identified exit to Extension 13481 | -5/Factory | Discovered exit to Extension (range 29) 13484 | -5/Factory | Discovered exit to Factory (range 30) 13775 | -5/Factory | Reached level 23 14106 | -5/Factory | Fabricated Imp. Arc Projector (x1) 14163 | -5/Factory | Fabricated Imp. Arc Projector? 14198 | -5/Factory | P-70 Sage assimilated allied Administrator 6a 14373 | -5/Factory | Discovered exit to Factory (range 29) 14495 | -5/Factory | Fabricated Adv. Datajack? 14553 | -5/Factory | Identified exit to Upper Caves 14553 | -5/Factory | Discovered exit to Upper Caves (range 29) 14650 | -5/Factory | Discovered exit to Extension (range 27) 14679 | -5/Factory | Identified exit to Garrison 14749 | -5/Factory | Entered Garrison 14749 | -5/Garrison | Accompanied by 7 allies 14785 | -5/Garrison | Triggered checkpoint 14789 | -5/Garrison | Garrison Relay disabled 14859 | -5/Garrison | Discovered exit to Factory (range 30) 14872 | -5/Garrison | Triggered checkpoint 14922 | -5/Garrison | Triggered checkpoint 15041 | -5/Garrison | Phase Generator disabled 15117 | -5/Garrison | Discovered exit to Factory (range 30) 15130 | -5/Garrison | Triggered checkpoint 15150 | -5/Garrison | Triggered checkpoint 15163 | -5/Garrison | Garrison Relay disabled 15264 | -5/Garrison | Expanded RIF knowledge: Autooverride 15276 | -5/Garrison | Entered Factory 15276 | -4/Factory | Accompanied by 8 allies 15278 | -4/Factory | Reached level 24 15422 | -4/Factory | Garrison activated, responded to threat 15479 | -4/Factory | Reached level 25 15688 | -4/Factory | Core integrity fell below 50% 15708 | -4/Factory | Core integrity fell below 20% 15731 | -4/Factory | Destroyed by P-70 Sage with Tesla Rifle Last Messages --------------- 15714_ P-70 Sage destroyed. 15715_ K-01 Serf collects debris. 15717_ Upgraded: Core Integrity (+50) 15719_ K-01 Serf collects debris. 15719_ P-70 Sage resets P-70 Sage, system corruption cleaned. 15720_ System corrupted: Hvy. Pick targeting data glitched. 15720_ Destroyed Imp. Heat Sink. 15721_ U-05 Engineer lays Concrete. 15722_ K-01 Serf collects debris. 15723_ System corrupted: Energy discharge (-140). 15724_ U-05 Engineer lays Concrete. 15725_ K-01 Serf collects debris. 15725_ System corrupted: Hvy. Pick targeting data glitched. 15726_ U-05 Engineer lays Concrete. 15726_ U-05 Engineer builds a Wall. 15728_ U-05 Engineer lays Concrete. 15729_ K-01 Serf collects debris. 15730_ R-10 Processor collects Imp. Heat Sink. 15730_ U-05 Engineer lays Concrete. [Achievement: Superachiever] Map ----- +----------------------------------------------------+ | #?#### ########## """ """ "Y" ###?#??? | | ###### ########## """ """ """ ##?###?? | | ###### ########## #######? | | #?#########+#+####################+#+######## | | # | | # | | # | | + | | """ """ """ # | | ######################### """ """ """ # | | ########################## """ """ """ # | | ###################### "" "" ##### | | ######### # "" "" ##### | | # # # ##### | | " # """ # # ##### | | # "R" # = # ##### | | # " " # # ######### ##### | | ##### # # # # ##### | | ## # # # # # | | ## # " + # # | | + """ # # R # """" # + | | " ## """"" # #%[ # """" # # | | " ## """"" # #|! # """" # # | | " ## # #*%= # """" # # | | #####+#####/# ###; | # # # | | " u /@ # """" # # | | " *p # """" # # | | " p !% # """" # # | | " ^*%%= # """" # + | | " =!*% # # # | | ########+### " " " ######### # | | # """" !!! ######### ##### | | == """ #% "" """" !!% | | == """ # " !![k | | = """ = | | # "" """ % | | # % " """" %! | | " ###### # #########+ | | ############ " # " ## | | ##### " " " # ### | | ##### """" " %% [% + !%! # # | | ##### % [ # ## | | ###"# %*! " ## | | = " ! ## | | #######+###########"" ""## " ## [! | | ## #####""G"" # " ### [! | | ## ######## # #""""######## ![ | | ## ############ ############ !%* | | ## ############ ########### !== | | ## """ """ # ####### ############ | +----------------------------------------------------+ Best States ------------- Heat Dissipation 74 Coolant Potential 80 Energy Generation 26 Energy Capacity 800 Matter Stores 300 Matter Capacity 300 Sight Range 16 Robot Scan Range 30 Terrain Scan Range 30 Terrain Scan Density 1010 EM Shielding 3 Armor Coverage 225 Resistance: KI 50 Resistance: TH 35 Resistance: EX 35 Resistance: EM 35 Resistance: I 35 Resistance: S 35 Resistance: P 35 Phase Shifting 5 Evasion (%) 50 Targeting Accuracy 12 Melee Accuracy 5 Recoil Reduction 1 Particle Charging 15 Offensive Hacking 71 Defensive Hacking 15 Item Schematics ----------------- Structural Scanner | -10/Materials | Hacked Datajack | -10/Materials | Hacked Lgt. Armor Plating | -10/Materials | Hacked Ion Engine | -10/Materials | Hacked Signal Interpreter | -10/Materials | Hacked Sensor Array | -10/Materials | Hacked Lgt. Treads | -10/Materials | Hacked Wheel | -10/Materials | Hacked Trap Extractor | -8/Materials | Hacked Mni. Grenade Launcher | -8/Materials | Scanalyzed Hvy. Flail | -8/Materials | Extracted Imp. Datajack | -8/Materials | Hacked Hacking Suite | -8/Materials | Hacked Axe | -8/Materials | Scanalyzed Imp. Deuterium Engine | -8/Storage | Hacked EM Shield | -8/Storage | Hacked Imp. Heat Sink | -8/Storage | Hacked Adv. Sensor Array | -8/Storage | Hacked Adv. Signal Interpreter | -8/Storage | Hacked Adv. Terrain Scanner | -8/Storage | Hacked Carbon-fiber Leg | -8/Storage | Hacked Lgt. Nuclear Core | -8/Storage | Hacked Gatling Laser | -8/Storage | Hacked Imp. Reclamation Unit | -8/Storage | Hacked Hrd. Medium Armor Plating | -8/Recycling | Hacked Adv. Melee Analysis Suite | -8/Recycling | Hacked Adv. Targeting Computer | -8/Recycling | Hacked Adv. Visual Processing Unit | -8/Recycling | Hacked Lrn. Missile Launcher | -8/Recycling | Hacked Matter Compressor | -8/Recycling | Hacked Recoil Nullifier | -6/Factory | Hacked Adv. Trap Extractor | -6/Factory | Hacked Exp. Terrain Scanner | -6/Factory | Hacked Exp. Terrain Scan Processor | -6/Factory | Hacked Imp. Hacking Suite | -6/Factory | Hacked Adv. Hacking Suite | -5/Factory | Hacked Imp. Arc Projector | -5/Factory | Hacked Exp. Signal Interpreter | -5/Factory | Hacked Imp. System Backup Module | -5/Factory | Hacked System Restoration Module | -5/Factory | Hacked Shock Maul | -5/Factory | Hacked Imp. Remote Datajack | -5/Factory | Hacked Cold Fusion Reactor | -5/Factory | Hacked Fusion Bomb Launcher | -5/Factory | Hacked Micro-nuke Launcher | -5/Factory | Hacked Mic. Fission Core | -5/Factory | Hacked Adv. Datajack | -5/Factory | Hacked Lgt. Particle Reactor | -5/Factory | Hacked Thunder Hammer | -5/Factory | Hacked Lgt. Antimatter Reactor | -5/Factory | Hacked Robot Schematics ------------------ O-16 Technician | -10/Materials | Hacked G-34 Mercenary | -10/Materials | Hacked O-24 Administrator | -8/Storage | Hacked G-47 Trooper | -8/Storage | Hacked H-55 Commando | -8/Storage | Hacked D-53 Grenadier | -8/Storage | Hacked G-67 Veteran | -4/Factory | Hacked Fabricated ------------ Adv. Trap Extractor | x2 | -6/Factory Exp. Terrain Scanner | x1 | -6/Factory Exp. Terrain Scan Processor | x1 | -6/Factory L-41 Fighter | x3 | -5/Factory | Preloaded Imp. Hacking Suite | x1 | -5/Factory Imp. Hacking Suite | x1 | -5/Factory Imp. Arc Projector | x1 | -5/Factory Imp. Arc Projector | x1 | -5/Factory Adv. Datajack | x1 | -5/Factory Alien Tech Used ----------------- None Achievements -------------- Assimilation Complete Error 47 Factory Defaults Minesweeper Overkill Pwned Superachiever Challenges ------------ None RPGLIKE | -11 -10 -10 -10 -9 -8 -8 -8 -8 -6 -6 -5 -5 -5 -5 -4 --------- Run | Scr Mat Min Exi Min Mat Sto Gar Rec Fac Gar Fac Gar Fac Gar Fac Levels Raised 24 | . . 1 . 1 6 3 1 1 4 1 3 . 1 . 2 XP Earned 42266 | 6000 1175 1400 350 1435 8130 4456 2050 870 7015 1251 3663 981 661 870 1959 XP Spent 36160 | 3150 2850 900 500 . 9800 2600 1400 2900 3950 4250 3800 . . . 60 Upgrades 37 | 5 7 2 1 . 7 1 1 1 7 2 1 . . . 2 Propulsion Slot 1 | . . . . . 1 . . . . . . . . . . Utility Slot 12 | 3 . . . . 4 1 . 1 1 1 1 . . . . Weapon Slot 4 | 1 . . . . 2 . 1 . . . . . . . . Core Integrity 2 | . . . . . . . . . . . . . . . 2 Heat Dissipation 5 | . . . . . . . . . 5 . . . . . . Energy Generation 1 | . . . . . . . . . 1 . . . . . . Inventory Capacity 3 | 1 . . 1 . . . . . . 1 . . . . . Hack Attack % 3 | . 3 . . . . . . . . . . . . . . Hack Defense % 3 | . 3 . . . . . . . . . . . . . . KI Resistance % 3 | . 1 2 . . . . . . . . . . . . . Protomatter Created 3092 | . 104 26 . . 371 420 318 73 732 160 561 191 79 . 57 Integrity Restored 6614 | . 308 76 . 213 276 142 346 192 1855 662 704 576 607 559 98 Core 5077 | . 268 54 . 152 197 110 274 80 1420 535 548 576 333 449 81 Parts 1537 | . 40 22 . 61 79 32 72 112 435 127 156 . 274 110 17 Protomatter Decayed 3085 | . . 158 . 8 354 399 447 181 557 73 391 63 94 250 110 Game ------ Seed FieldNodeSplitter Manual? 1 Play Time 05:14:25 Cumulative 142.6 hours Start 2020.04.13 @ 18:13:05 End 2020.04.13 @ 23:58:32 Sessions 1 Manual Loads 0 Difficulty Explorer Special Mode Winter2019/RPGLIKE Game No. 27 Rogue 1 Adventurer 3 Explorer 23 Win Type - Total 13 Types 13/0/0/0/0/0/0 Lore% 67 Gallery% 79 Achievement% 75 Wizard Run 0 Options --------- ASCII 0 Keyboard 1 Movement Vi Keybinds 0 Fullscreen 2 Font 24/Terminus Map View 76x50 Tactical HUD 1 Map Filters NONE Filters NONE Steam X RUN: 4591845b-4b64-4990-8455-9b5be41459b5